Cogmind - Beta 16 @@@ ROGUE MODE // 2025.10.29 @ 16:28:51 Player: Lios Result: Self-destructed Performance ------------- Evolutions (1) 500 Regions Visited (2) 400 Robots Destroyed (9) 45 Value Destroyed (209) 209 Prototype IDs (0) 0 Alien Tech Used (0) 0 Bonus (0) 0 TOTAL SCORE: 1154 Bonus ------- None Cogmind --------- Core Integrity 341/400 Matter 250/300 Energy 88/100 System Corruption 0% Temperature Cool (0) Movement Walking (120) Location -9/Materials Parts ------- > --- POWER (1) -------- (None) > --- PROPULSION (3) --- Aluminum Leg Aluminum Leg > --- UTILITY (3) ------ Small Storage Unit Seismic Detector > --- WEAPON (2) ------- Particle Gun Particle Cannon > --- INVENTORY (8) ---- Light Ion Engine Terrain Scan Processor Shield Generator Light Assault Rifle Grenade Launcher Mining Laser Plasma Cutter Peak State ------------ > --- POWER ------------ Light Ion Engine > --- PROPULSION ------- Aluminum Leg Aluminum Leg Aluminum Leg > --- UTILITY ---------- Small Storage Unit Seismic Detector Medium Armor Plating > --- WEAPON ----------- Particle Cannon Plasma Cutter > --- INVENTORY -------- Ion Engine Light Ion Engine Terrain Scan Processor Particle Gun Light Assault Rifle Light Assault Rifle Grenade Launcher Mining Laser [Rating: 13] Favorites ----------- Power Light Ion Engine Engine Light Ion Engine Propulsion Aluminum Leg Leg Aluminum Leg Utility Small Storage Unit Device Seismic Detector Storage Small Storage Unit Protection Medium Armor Plating Weapon Particle Cannon Energy Gun Particle Gun Energy Cannon Particle Cannon Ballistic Gun Assault Rifle Special Weapon Plasma Cutter Build | -11 -10 -9 ------- Run | Yrd Mat Mat Slots Evolved 2 | . . 2 Power . | . . . Propulsion 1 | . . 1 Utility 1 | . . 1 Weapon . | . . . Parts Attached 15 | 7 1 7 Power 2 | 1 . 1 Engine 2 | 1 . 1 Core . | . . . Reactor . | . . . Propulsion 4 | 2 1 1 Treads . | . . . Leg 4 | 2 1 1 Wheel . | . . . Hover . | . . . Flight . | . . . Utility 3 | 2 . 1 Device 1 | 1 . . Storage 1 | 1 . . Processor . | . . . Hackware . | . . . Protection 1 | . . 1 Artifact . | . . . Weapon 6 | 2 . 4 Energy Gun 1 | . . 1 Energy Cannon 1 | . . 1 Ballistic Gun 2 | 2 . . Ballistic Cannon . | . . . Launcher . | . . . Special Weapon 2 | . . 2 Impact Weapon . | . . . Slashing Weapon . | . . . Piercing Weapon . | . . . Special Melee Weapon . | . . . Unidentified Prototypes . | . . . Parts Lost 1 | . . 1 Power 1 | . . 1 Propulsion . | . . . Utility . | . . . Weapon . | . . . Highest Loss Streak 1 | . . 1 To Critical Strikes . | . . . Average Backups 6 | 4 7 7 Power 1 | 1 2 1 Propulsion . | 1 1 . Utility . | . . . Weapon 3 | 1 2 4 Tool/Special . | . . . Unused Backups 8 | . 4 4 Power 1 | . . 1 Propulsion 4 | . 4 . Utility 1 | . . 1 Weapon 2 | . . 2 Tool/Special . | . . . Average Slot Usage (%) 98 | . 100 98 Engine 11 | . 14 11 Leg 30 | . 28 32 Device 11 | . 14 11 Storage 11 | . 14 11 Protection 7 | . . 10 Energy Gun 2 | . . 3 Energy Cannon 6 | . . 9 Ballistic Gun 9 | . 28 2 Special Weapon 4 | . . 6 Peak Build Rating 13 | 7 8 13 Average Rating 9 | 5 7 11 On Entrance 5 | . 7 8 Avg Prop Armor Cover (%) . | . . . Naked Turns . | . . . Heaviest Build 25 | 12 12 25 Greatest Support 30 | 20 20 30 Greatest Overweight (x) 5 | . . 5 Average Overweight (x) . | . . . Largest Inventory Capacity 8 | 8 8 8 Average Capacity 7 | 7 8 8 Most Carried 8 | 6 8 8 Average Carried 6 | 4 7 7 Final Capacity 8 | 8 8 8 Final Carried 8 | 6 8 7 Class Distribution -------------------- 94% | Mutant 5% | Scavenger-Mutant Dominant Class ---------------- Mutant | -10/Materials Mutant | -9/Materials Resources | -11 -10 -9 ----------- Run | Yrd Mat Mat Matter Collected 383 | 184 117 82 Remotely . | . . . Salvage Created 262 | 63 117 82 Parts 27 | 9 7 11 Haulers Intercepted . | . . . Recyclers Shooed . | . . . Parts Field Recycled . | . . . Retrieved Matter . | . . . Parts Self-Destructed . | . . . Prevented . | . . . Parts Restored . | . . . Kills | -11 -10 -9 ------- Run | Yrd Mat Mat Combat Hostiles Destroyed 4 | . 3 1 Guns 3 | . 3 . Cannons 1 | . . 1 Classes Destroyed 5 | 1 1 3 Builder 1 | . . 1 Tunneler 3 | 3 . . Watcher 1 | . . 1 Grunt 3 | . 3 . Sentry 1 | . . 1 Best Kill Streak 3 | 1 3 2 Combat Bots Only 3 | . 3 1 Max Kills in Single Turn 1 | 1 1 1 Gunslinging . | . . . Exploded . | . . . Melee . | . . . Uniques/NPCs Destroyed . | . . . Combat | -11 -10 -9 -------- Run | Yrd Mat Mat Hostile Shots Fired 46 | . 12 34 Missed 15 | . 4 11 Hits 31 | . 8 23 Projectile 31 | . 8 23 Critical Strikes 2 | . . 2 Damage Taken 417 | . 85 332 Core 69 | . 10 59 Absorbed by Shields . | . . . Core Remaining (%) 98 | 100 96 . Volleys Fired 21 | 7 5 9 Largest 2 | 2 2 2 Hottest 133 | 40 40 133 Shots Fired 38 | 14 10 14 Gun 27 | 14 10 3 Cannon 7 | . . 7 Launcher . | . . . Special 4 | . . 4 Kinetic 24 | 14 10 . Thermal 14 | . . 14 Explosive . | . . . Electromagnetic . | . . . Robot Hit Streak 6 | 6 6 4 Robot Miss Streak 5 | 2 1 5 Penetration Max . | . . . Secondary Targets 2 | . 2 . Max Gunslinging Chain 1 | . 1 . Shots Hit Robots 21 | 8 9 4 Core Hits 12 | 5 4 3 Critical Kills . | . . . Critical Parts Destroyed . | . . . Critical Strikes . | . . . Melee Attacks . | . . . Impact . | . . . Slashing . | . . . Piercing . | . . . Sneak Attacks . | . . . Combat Hostiles . | . . . Follow-up Attacks . | . . . Damage Inflicted 275 | 88 97 90 Guns 201 | 88 97 16 Cannons 62 | . . 62 Explosions . | . . . Melee . | . . . Ramming . | . . . Kinetic 185 | 88 97 . Thermal 90 | . . 90 Explosive . | . . . Electromagnetic . | . . . Impact . | . . . Slashing . | . . . Piercing . | . . . Highest Corruption . | . . . Average Corruption . | . . . Corruption Purged . | . . . Corruption Blocked . | . . . Overload Shots . | . . . Overflow Damage . | . . . Projectiles . | . . . Explosions . | . . . Melee . | . . . Knockbacks . | . . . Impact . | . . . Kinetic . | . . . Secondary . | . . . Self-Inflicted Damage . | . . . Shots . | . . . Rammed . | . . . Targets Rammed . | . . . Kicked . | . . . Crushed . | . . . Highest Temperature 171 | . 12 171 Average Temperature 45 | . 6 50 Received Heat Transfer 174 | . 48 126 Siege Activations . | . . . Martial Activations . | . . . Shielding Activations . | . . . Robots Disrupted . | . . . Combat Hostiles . | . . . Robots Corrupted . | . . . Combat Hostiles . | . . . Parts Fried . | . . . Impact Corruptions . | . . . Robots Melted . | . . . Combat Hostiles . | . . . Parts Melted 1 | . . 1 Heat Transferred 185 | . . 185 Parts Sabotaged . | . . . Parts Stolen . | . . . Parts Stripped . | . . . Power Chain Reactions . | . . . Alert | -11 -10 -9 ------- Run | Yrd Mat Mat Maximum Alert Level . | . . . Low Security (%) 100 | 100 100 100 Level 1 . | . . . Level 2 . | . . . Level 3 . | . . . Level 4 . | . . . Level 5 . | . . . High Security . | . . . Max Security . | . . . Peak Influence 70 | 5 70 30 Initial 25 | . . 25 Average 5 | 1 10 5 Influence Increases 158 | 15 70 73 Destroy 0b10 Robot/C 80 | . 60 20 Destroy 0b10 Robot/NC 25 | 15 . 10 Destroy Leader 22 | . 10 12 Disable Machine 30 | . . 30 Destroy Structure 1 | . . 1 Influence Decreases 158 | 15 10 133 Entered New Map 35 | . . 35 Time Decay 113 | 15 10 88 Lost Part 10 | . . 10 Squads Dispatched 1 | . 1 . Investigation 1 | . 1 . Extermination . | . . . Reinforcement . | . . . Assault . | . . . Garrison . | . . . Intercept . | . . . Searches Triggered . | . . . Construction Impeded . | . . . Haulers Reinforced . | . . . Active Scanning Responses . | . . . Cargo Convoy Interrupts . | . . . Stealth | -11 -10 -9 --------- Run | Yrd Mat Mat Distress Signals . | . . . Communications Jammed . | . . . Distress Signals . | . . . Times Spotted 10 | . 4 6 Peak Tracking Total 4 | . 3 4 Tactical Retreats . | . . . Traps | -11 -10 -9 ------- Run | Yrd Mat Mat Traps Triggered 2 | . . 2 Indirectly . | . . . Trap Hack Attempts . | . . . Triggered . | . . . Disarmed . | . . . Reprogrammed . | . . . Reused . | . . . Traps Extracted . | . . . Installed . | . . . Triggered . | . . . Machines | -11 -10 -9 ---------- Run | Yrd Mat Mat Machines Disabled 2 | . . 2 Max in Single Turn 1 | . . 1 Machines Repaired . | . . . Machines Dismantled 2 | . . 2 Machines Sabotaged . | . . . Overloaded Fab Kills . | . . . Hacking | -11 -10 -9 --------- Run | Yrd Mat Mat Machines Accessed 3 | . 2 1 Terminals 2 | . 1 1 Fabricators . | . . . Repair Stations . | . . . Recycling Units 1 | . 1 . Scanalyzers . | . . . Garrison Access . | . . . Total Hacks 6 | . 5 1 Successful 6 | . 5 1 Failed . | . . . Catastrophic . | . . . Database Lockouts . | . . . Manual 1 | . 1 . Terminals 4 | . 3 1 Fabricators . | . . . Repair Stations . | . . . Recycling Units 2 | . 2 . Scanalyzers . | . . . Garrison Access . | . . . Terminal Hacks 3 | . 2 1 Record 2 | . 1 1 Zone Layout 1 | . 1 . Fabricator Hacks . | . . . Repair Station Hacks . | . . . Recycling Unit Hacks 2 | . 2 . Report Inventory 1 | . 1 . Retrieve Components 1 | . 1 . Scanalyzer . | . . . Garrison Access Hacks . | . . . Unauthorized Hacks 1 | . 1 . Terminals 1 | . 1 . Sabotage 1 | . 1 . Fabricators . | . . . Repair Stations . | . . . Recycling Units . | . . . Scanalyzers . | . . . Garrison Access . | . . . Data Cores Recovered . | . . . Used . | . . . Hacking Detections . | . . . Full Trace Events . | . . . Feedback Events . | . . . Feedback Blocked . | . . . Robot Schematics Acquired . | . . . Robots Built . | . . . Authchips . | . . . Time . | . . . Total Robot Build Rating . | . . . Part Schematics Acquired . | . . . Parts Built . | . . . Authchips . | . . . Time . | . . . Total Part Build Rating . | . . . Part Studies Acquired . | . . . Parts Repaired . | . . . Time . | . . . Parts Recycled . | . . . Recycled Matter . | . . . Retrieved Matter . | . . . Retrieved Components 3 | . 3 . Parts Scanalyzed . | . . . Part Schematics Acquired . | . . . Parts Damaged . | . . . Bothacking | -11 -10 -9 ------------ Run | Yrd Mat Mat Used RIF Installer . | . . . Robots Hacked . | . . . Non-combat . | . . . Combat . | . . . Robot Hacks Applied . | . . . Relay Couplers Released . | . . . Fabnet Peak Effective % . | . . . Robots Rewired . | . . . Allies Hacked . | . . . Hacks Repelled . | . . . Allies | -11 -10 -9 -------- Run | Yrd Mat Mat Total Allies . | . . . Largest Group . | . . . Highest-Rated Group . | . . . Highest-Rated Ally . | . . . Total Orders . | . . . Ally Attacks . | . . . Total Damage . | . . . Kills . | . . . Allies Corrupted . | . . . Allies Melted . | . . . Intel | -11 -10 -9 ------- Run | Yrd Mat Mat Active Infowar (turns) 554 | 16 149 389 Seismic 554 | 16 149 389 Robot Analysis Total . | . . . Derelict Logs Recovered . | . . . Drone Launches . | . . . Drone Recoveries . | . . . Exploration | -11 -10 -9 ------------- Run | Yrd Mat Mat Turns Passed 681 | 143 149 389 Spaces Moved 377 | 92 101 184 Core 6 | 5 . 1 Treads . | . . . Legs 371 | 87 101 183 Wheels . | . . . Hover . | . . . Flight . | . . . Fastest Speed 50 | 50 120 120 Average Speed 119 | 116 120 121 Slowest Speed 300 | 120 120 300 Overloaded Moves . | . . . Propulsion Burnouts . | . . . Robots Hopped . | . . . Potential Cave-ins . | . . . Cave-ins Triggered . | . . . Exploration Rate (%) 14 | 4 19 20 Regions Visited 2 Branch Regions . Pre-discovered Areas . | . . . Known Exits Taken . | . . . Unknown Exits Taken 2 | 1 1 . Scrap Searched . | . . . Spaces Dug 1 | . . 1 Terrain Destroyed 1 | . . 1 Melee . | . . . Projectile 1 | . . 1 AOE . | . . . Terrain Rammed . | . . . Walls Destroyed . | . . . Machines Disabled . | . . . Actions | -11 -10 -9 --------- Run | Yrd Mat Mat Total 502 | 112 122 268 Wait 36 | 1 5 30 Move 375 | 91 100 184 Hop . | . . . Pick Up 14 | 6 6 2 Fast Attach 12 | 7 . 5 Attach 3 | . . 3 Detach 1 | . . 1 Swap 4 | . 1 3 Drop 7 | . 5 2 Fire 21 | 7 5 9 Melee . | . . . Ram . | . . . Kick . | . . . Crush . | . . . Escape Stasis . | . . . Rewire . | . . . Trap . | . . . Miscellaneous 29 | . . 29 Route ------- -11/Scrapyard -10/Materials -9/Materials (discovered 1 exit: [*Min]) History --------- Turn | Location | Event 14 | -11/Scrapyard | Discovered new exit (range 16) 144 | -11/Scrapyard | Entered Materials 233 | -10/Materials | Discovered new exit (range 16) 293 | -10/Materials | Entered another Materials area 293 | -9/Materials | Evolved 2 slots: Propulsion x1, Utility x1 315 | -9/Materials | Build established: Mutant 570 | -9/Materials | Discovered new exit (range 16) 682 | -9/Materials | Self-destructed Last Messages --------------- Y-45 Defender destroyed. Critical hit (Burn: +37). Acquired 54 matter. Processing Tank disabled. Critical hit (Burn: +37). Acquired Shield Generator. Triggered Blade Trap. Massive razor-sharp blades shoot up from within the floor. Lgt. Ion Engine severed. Aluminum Leg severed. Med. Armor Plating severed. Acquired Med. Armor Plating. Triggered Blade Trap. Massive razor-sharp blades shoot up from within the floor. Aluminum Leg severed. Med. Armor Plating severed. Aluminum Leg severed. Acquired Aluminum Leg. Ion Engine destroyed. Acquired Aluminum Leg. Map ----- +----------------------------------------------------+ | ?????????????????????????# #??? "????????????? | | ??????????????????????#### #??? ????????????? | | ?????????????????###### ## #??? ?????????????? | | ????????????????# # #?? ????????????? | | ????????????????# """ ""# #?? """ ???????????? | | ????????????????# """ T"# #?? """ ???????????? | | ????????????????# """ ""# #?? ""?????????????? | | ????????????????# # #?? ??????????????? | | ????????????????# """ / ###+#############???? | | ????????????????# """ # ??? | | ????????????????# """ # ??? | | ????????????????# # ??? | | ????????????????################/########????????? | | ??????????????????? ! ! # #???????????? | | ??????????????????? # #???????????? | | ???????????????????""" """"" # #???????????? | | ????????????????????"" """"" # #???????????? | | ?????????????????""""" """"" " | #???????????? | | ???????????????# # #???????????? | | ???????????????????#######+### #???????????? | | ?????????????????????# ## #???????????? | | ?????????????????????# ## #???????????? | | ?????????????????????# ## #???????????? | | ????????????????######/## ## #???????????? | | ????????????????# ## ##########???????????? | | ????????????????#""" ##@ #????????????????????? | | ????????????????#""" ##!=^#????????????????????? | | ????????????????#""" ## * #????????????????????? | | ????????????????#"" [ ## #????????????????????? | | ????????????????#""" ## YY##???????????????????? | | ????????????????# ==# Y [#######/## ????????? | | ????????????????#""" [ # ???????? | | ????????????????#""" [!+ ???????? | | ????????????????#"" # ???????? | | ????????????????#""" # ####### ## ????????? | | ????????????????#""" #######???????????????????? | | ????????????????# #?????????????????????????? | | ????????????????########?????????????????????????? | | ?????????????????????????????????????????????????? | | ?????????????????????????????????????????????????? | | ?????????????????????????????????????????????????? | | ?????????????????????????????????????????????????? | | ?????????????????????????????????????????????????? | | ?????????????????????????????????????????????????? | | ?????????????????????????????????????????????????? | | ?????????????????????????????????????????????????? | | ?????????????????????????????????????????????????? | | ?????????????????????????????????????????????????? | | ?????????????????????????????????????????????????? | | ?????????????????????????????????????????????????? | +----------------------------------------------------+ Best States ------------- Heat Dissipation 28 Energy Generation 10 Energy Capacity 250 Matter Stores 285 Matter Capacity 300 Sight Range 16 Terrain Scan Density 10 Armor Coverage 225 Evasion (%) 55 Item Schematics ----------------- None Robot Schematics ------------------ None Fabricated ------------ Nothing Repaired ---------- Nothing Studied --------- None Alien Tech Used ----------------- None Achievements -------------- Brute Force Challenges ------------ None Game ------ Seed StorageServoInterpreter Manual? 0 Play Time 00:16:18 Cumulative 29.8 hours Start 2025.10.29 @ 16:05:40 End 2025.10.29 @ 16:28:51 Sessions 1 Manual Loads 0 Difficulty Rogue Special Mode None Game No. 16 Rogue 14 Adventurer 0 Explorer 2 Win Type - Total 0 Types 0/0/0/0/0/0/0/0/0/0 Lore% 15 Gallery% 23 Achievement% 16 Wizard Run 0 Options --------- Layout 0 ASCII 0 Keyboard 0 Movement Mouse Keybinds 0 Fullscreen 2 Font 18/SmallcapsGlow Map View 76x50 Zoom Use 0% Tactical HUD 0 Map Filters NONE Filters NONE Steam 1 RUN: 86df1301-c331-4544-829a-447cc04623e3